{"text_format":"1","workbook":"xlsx","n_sheets":1,"sheets":["ххх"],"not_rendered":{"charts":0,"images":0,"macros":1,"external_links":0,"defined_names":2,"comments":0,"pivot_tables":0},"unopened":[],"bounds":{"document_bytes":16777216,"sheet_cells":100000,"rows_first":2000,"rows_last":500,"rows_between":2000,"halvings":0,"cell_chars":16384,"cell_head_chars":4096},"cells_cut":0,"cells_raw":0,"read":"whole","date_system":"1900"}

{"sheet":"ххх","index":0,"n_rows":105,"n_cols":43,"rows_kept":105,"cut":false,"hidden":false,"merged":[[1,34,1,42],[5,0,14,0],[3,0,4,0],[15,0,24,0],[25,0,34,0],[35,0,44,0],[45,0,54,0],[55,0,64,0],[66,34,71,34],[3,34,7,34],[8,34,17,34],[18,34,26,34],[27,34,34,34],[35,34,44,34],[45,34,52,34],[53,34,59,34],[60,34,65,34],[60,36,65,36],[66,36,71,36],[3,36,7,36],[8,35,17,35],[8,36,17,36],[18,35,26,35],[18,36,26,36],[27,36,34,36],[35,35,44,35],[35,36,44,36],[27,35,34,35],[3,35,7,35],[45,36,52,36],[53,35,59,35],[60,35,65,35],[53,36,59,36],[45,35,52,35],[66,35,71,35],[72,34,76,34],[72,35,76,35],[72,36,76,36],[93,7,93,27],[84,7,84,27],[85,7,85,27],[86,7,86,27],[87,7,87,27],[88,7,88,27],[89,7,89,27],[90,7,90,27],[91,7,91,27],[92,7,92,27],[82,7,82,27],[76,7,76,27],[77,7,77,27],[78,7,78,27],[79,7,79,27],[80,7,80,27],[81,7,81,27],[83,7,83,27],[74,7,74,27],[75,7,75,27],[34,7,34,27],[41,7,41,27],[42,7,42,27],[43,7,43,27],[44,7,44,27],[45,7,45,27],[5,7,5,27],[6,7,6,27],[7,7,7,27],[8,7,8,27],[9,7,9,27],[10,7,10,27],[22,7,22,27],[23,7,23,27],[11,7,11,27],[12,7,12,27],[13,7,13,27],[33,7,33,27],[64,7,64,27],[3,7,4,27],[3,28,3,31],[3,3,4,5],[1,1,1,31],[15,3,24,5],[25,3,34,5],[65,3,74,5],[95,3,104,5],[95,2,104,2],[95,1,104,1],[85,1,94,1],[35,1,44,1],[45,1,54,1],[35,3,44,5],[35,2,44,2],[15,2,24,2],[19,7,19,27],[20,7,20,27],[21,7,21,27],[75,2,84,2],[85,2,94,2],[65,2,74,2],[75,1,84,1],[57,7,57,27],[58,7,58,27],[59,7,59,27],[60,7,60,27],[61,7,61,27],[62,7,62,27],[63,7,63,27],[46,7,46,27],[47,7,47,27],[48,7,48,27],[49,7,49,27],[50,7,50,27],[51,7,51,27],[52,7,52,27],[53,7,53,27],[54,7,54,27],[55,7,55,27],[56,7,56,27],[5,1,14,1],[65,1,74,1],[15,1,24,1],[25,2,34,2],[25,1,34,1],[85,3,94,5],[55,3,64,5],[45,3,54,5],[5,2,14,2],[5,3,14,5],[55,1,64,1],[45,2,54,2],[55,2,64,2],[75,3,84,5],[65,0,74,0],[75,0,84,0],[85,0,94,0],[95,0,104,0],[14,7,14,27],[15,7,15,27],[16,7,16,27],[17,7,17,27],[18,7,18,27],[35,7,35,27],[36,7,36,27],[37,7,37,27],[38,7,38,27],[39,7,39,27],[40,7,40,27],[24,7,24,27],[25,7,25,27],[26,7,26,27],[27,7,27,27],[28,7,28,27],[29,7,29,27],[30,7,30,27],[31,7,31,27],[32,7,32,27],[65,7,65,27],[66,7,66,27],[67,7,67,27],[68,7,68,27],[69,7,69,27],[70,7,70,27],[71,7,71,27],[72,7,72,27],[73,7,73,27],[97,7,97,27],[98,7,98,27],[99,7,99,27],[100,7,100,27],[101,7,101,27],[102,7,102,27],[103,7,103,27],[94,7,94,27],[104,7,104,27],[95,7,95,27],[96,7,96,27]]}
[null,1,2,3,4,5,6,7,8,9,10,11,12,13,14,15,16,17,18,19,20,21,22,23,24,25,26,27,28,29,30,31,32,33,34,35,36,37,38,39,40,41,42]
[null,"ТАБЛИЦА 2",null,null,null,null,null,null,null,null,null,null,null,null,null,null,null,null,null,null,null,null,null,null,null,null,null,null,null,null,null,null,null,null,"ТАБЛИЦА 1"]
[]
["количество, шт",null,null,"Наименование изделия",null,null,null,"Состав изделия",null,null,null,null,null,null,null,null,null,null,null,null,null,null,null,null,null,null,null,null,"цвет деталей",null,null,null,null,null,{"$f":"IF(AQ4=0,\"Изделие не выбрано\",(SUM(AQ$4:AQ4)))","v":1},101,"Изделие 1",{"$f":"IF(AO4=1,AI4+AP4,0)","v":1.01},"Деталь 1",".",{"$f":"IF(AN4=\".\",1,0)","v":1},{"$f":"IF(AO4=1,0.01,0)","v":0.01},{"$f":"IF(SUM(AO4:AO8)>0,1,0)","v":1}]
[null,null,null,null,null,null,null,null,null,null,null,null,null,null,null,null,null,null,null,null,null,null,null,null,null,null,null,null,1,2,3,4,null,null,null,null,null,{"$f":"IF(AO5=1,AI4+SUM(AP4:AP5),0)","v":1.02},"Деталь 2",".",1,0.01]
[10,1,{"$f":"IF(ISNA(VLOOKUP(B6,ххх!$AI$4:$AJ$77,2,FALSE)),\"\",(VLOOKUP(B6,ххх!$AI$4:$AJ$77,2,FALSE)))","v":101},{"$f":"IF(ISNA(VLOOKUP(B6,ххх!$AI$4:$AK$77,3,FALSE)),\"\",(VLOOKUP(B6,ххх!$AI$4:$AK$77,3,FALSE)))","v":"Изделие 1"},null,null,1.01,{"$f":"IF(ISNA(VLOOKUP(G6,ххх!$AL$4:$AM$77,2,FALSE)),\"\",(VLOOKUP(G6,ххх!$AL$4:$AM$77,2,FALSE)))","v":"Деталь 1"},null,null,null,null,null,null,null,null,null,null,null,null,null,null,null,null,null,null,null,null,null,null,null,".",null,null,null,null,null,{"$f":"IF(AO6=1,AI4+SUM(AP4:AP6),0)","v":1.03},"Деталь 3",".",1,0.01]
[null,null,null,null,null,null,1.02,{"$f":"IF(ISNA(VLOOKUP(G7,ххх!$AL$4:$AM$77,2,FALSE)),\"\",(VLOOKUP(G7,ххх!$AL$4:$AM$77,2,FALSE)))","v":"Деталь 2"},null,null,null,null,null,null,null,null,null,null,null,null,null,null,null,null,null,null,null,null,null,".",null,null,null,null,null,null,null,{"$f":"IF(AO7=1,AI4+SUM(AP4:AP7),0)","v":1.04},"Деталь 4",".",1,0.01]
[null,null,null,null,null,null,1.03,{"$f":"IF(ISNA(VLOOKUP(G8,ххх!$AL$4:$AM$77,2,FALSE)),\"\",(VLOOKUP(G8,ххх!$AL$4:$AM$77,2,FALSE)))","v":"Деталь 3"},null,null,null,null,null,null,null,null,null,null,null,null,null,null,null,null,null,null,null,null,null,".",null,null,null,null,null,null,null,{"$f":"IF(AO8=1,AI4+SUM(AP4:AP8),0)","v":1.05},"Деталь 5",".",1,0.01]
[null,null,null,null,null,null,1.04,{"$f":"IF(ISNA(VLOOKUP(G9,ххх!$AL$4:$AM$77,2,FALSE)),\"\",(VLOOKUP(G9,ххх!$AL$4:$AM$77,2,FALSE)))","v":"Деталь 4"},null,null,null,null,null,null,null,null,null,null,null,null,null,null,null,null,null,null,null,null,null,".",null,null,null,null,{"$f":"IF(AQ9=0,\"Изделие не выбрано\",(SUM(AQ$4:AQ9)))","v":2},{"$f":"AJ4+1","v":102},"Изделие 2",{"$f":"IF(AO9=1,AI9+AP9,0)","v":2.0099999999999998},"Деталь 6",".",1,0.01,{"$f":"IF(SUM(AO9:AO18)>0,1,0)","v":1}]
[null,null,null,null,null,null,1.05,{"$f":"IF(ISNA(VLOOKUP(G10,ххх!$AL$4:$AM$77,2,FALSE)),\"\",(VLOOKUP(G10,ххх!$AL$4:$AM$77,2,FALSE)))","v":"Деталь 5"},null,null,null,null,null,null,null,null,null,null,null,null,null,null,null,null,null,null,null,null,null,".",null,null,null,null,null,null,null,{"$f":"IF(AO10=1,AI9+SUM(AP9:AP10),0)","v":2.02},"Деталь 7",".",1,0.01]
[null,null,null,null,null,null,1.06,{"$f":"IF(ISNA(VLOOKUP(G11,ххх!$AL$4:$AM$77,2,FALSE)),\"\",(VLOOKUP(G11,ххх!$AL$4:$AM$77,2,FALSE)))","v":""},null,null,null,null,null,null,null,null,null,null,null,null,null,null,null,null,null,null,null,null,null,null,null,null,null,null,null,null,null,{"$f":"IF(AO11=1,AI9+SUM(AP9:AP11),0)","v":2.0299999999999998},"Деталь 8",".",1,0.01]
[null,null,null,null,null,null,1.07,{"$f":"IF(ISNA(VLOOKUP(G12,ххх!$AL$4:$AM$77,2,FALSE)),\"\",(VLOOKUP(G12,ххх!$AL$4:$AM$77,2,FALSE)))","v":""},null,null,null,null,null,null,null,null,null,null,null,null,null,null,null,null,null,null,null,null,null,null,null,null,null,null,null,null,null,{"$f":"IF(AO12=1,AI9+SUM(AP9:AP12),0)","v":2.04},"Деталь 9",".",1,0.01]
[null,null,null,null,null,null,1.08,{"$f":"IF(ISNA(VLOOKUP(G13,ххх!$AL$4:$AM$77,2,FALSE)),\"\",(VLOOKUP(G13,ххх!$AL$4:$AM$77,2,FALSE)))","v":""},null,null,null,null,null,null,null,null,null,null,null,null,null,null,null,null,null,null,null,null,null,null,null,null,null,null,null,null,null,{"$f":"IF(AO13=1,AI9+SUM(AP9:AP13),0)","v":2.0499999999999998},"Деталь 10",".",1,0.01]
[null,null,null,null,null,null,1.0900000000000001,{"$f":"IF(ISNA(VLOOKUP(G14,ххх!$AL$4:$AM$77,2,FALSE)),\"\",(VLOOKUP(G14,ххх!$AL$4:$AM$77,2,FALSE)))","v":""},null,null,null,null,null,null,null,null,null,null,null,null,null,null,null,null,null,null,null,null,null,null,null,null,null,null,null,null,null,{"$f":"IF(AO14=1,AI9+SUM(AP9:AP14),0)","v":2.06},"Деталь 11",".",1,0.01]
[null,null,null,null,null,null,1.1000000000000001,{"$f":"IF(ISNA(VLOOKUP(G15,ххх!$AL$4:$AM$77,2,FALSE)),\"\",(VLOOKUP(G15,ххх!$AL$4:$AM$77,2,FALSE)))","v":""},null,null,null,null,null,null,null,null,null,null,null,null,null,null,null,null,null,null,null,null,null,null,null,null,null,null,null,null,null,{"$f":"IF(AO15=1,AI9+SUM(AP9:AP15),0)","v":2.0699999999999998},"Деталь 12",".",1,0.01]
[50,2,{"$f":"IF(ISNA(VLOOKUP(B16,ххх!$AI$4:$AJ$77,2,FALSE)),\"\",(VLOOKUP(B16,ххх!$AI$4:$AJ$77,2,FALSE)))","v":102},{"$f":"IF(ISNA(VLOOKUP(B16,ххх!$AI$4:$AK$77,3,FALSE)),\"\",(VLOOKUP(B16,ххх!$AI$4:$AK$77,3,FALSE)))","v":"Изделие 2"},null,null,2.0099999999999998,{"$f":"IF(ISNA(VLOOKUP(G16,ххх!$AL$4:$AM$77,2,FALSE)),\"\",(VLOOKUP(G16,ххх!$AL$4:$AM$77,2,FALSE)))","v":"Деталь 6"},null,null,null,null,null,null,null,null,null,null,null,null,null,null,null,null,null,null,null,null,".",null,null,null,null,null,null,null,null,{"$f":"IF(AO16=1,AI9+SUM(AP9:AP16),0)","v":2.08},"Деталь 13",".",1,0.01]
[null,null,null,null,null,null,2.02,{"$f":"IF(ISNA(VLOOKUP(G17,ххх!$AL$4:$AM$77,2,FALSE)),\"\",(VLOOKUP(G17,ххх!$AL$4:$AM$77,2,FALSE)))","v":"Деталь 7"},null,null,null,null,null,null,null,null,null,null,null,null,null,null,null,null,null,null,null,null,".",null,null,null,null,null,null,null,null,{"$f":"IF(AO17=1,AI9+SUM(AP9:AP17),0)","v":2.09},"Деталь 14",".",1,0.01]
[null,null,null,null,null,null,2.0299999999999998,{"$f":"IF(ISNA(VLOOKUP(G18,ххх!$AL$4:$AM$77,2,FALSE)),\"\",(VLOOKUP(G18,ххх!$AL$4:$AM$77,2,FALSE)))","v":"Деталь 8"},null,null,null,null,null,null,null,null,null,null,null,null,null,null,null,null,null,null,null,null,null,".",null,null,null,null,null,null,null,{"$f":"IF(AO18=1,AI9+SUM(AP9:AP18),0)","v":2.1},"Деталь 15",".",1,0.01]
[null,null,null,null,null,null,2.04,{"$f":"IF(ISNA(VLOOKUP(G19,ххх!$AL$4:$AM$77,2,FALSE)),\"\",(VLOOKUP(G19,ххх!$AL$4:$AM$77,2,FALSE)))","v":"Деталь 9"},null,null,null,null,null,null,null,null,null,null,null,null,null,null,null,null,null,null,null,null,null,".",null,null,null,null,{"$f":"IF(AQ19=0,\"Изделие не выбрано\",(SUM(AQ$4:AQ19)))","v":3},{"$f":"AJ9+1","v":103},"Изделие 3",{"$f":"IF(AO19=1,AI19+AP19,0)","v":3.01},"Деталь 16",".",1,0.01,{"$f":"IF(SUM(AO19:AO27)>0,1,0)","v":1}]
[null,null,null,null,null,null,2.0499999999999998,{"$f":"IF(ISNA(VLOOKUP(G20,ххх!$AL$4:$AM$77,2,FALSE)),\"\",(VLOOKUP(G20,ххх!$AL$4:$AM$77,2,FALSE)))","v":"Деталь 10"},null,null,null,null,null,null,null,null,null,null,null,null,null,null,null,null,null,null,null,null,null,".",null,null,null,null,null,null,null,{"$f":"IF(AO20=1,AI19+SUM(AP19:AP20),0)","v":3.02},"Деталь 17",".",1,0.01]
[null,null,null,null,null,null,2.06,{"$f":"IF(ISNA(VLOOKUP(G21,ххх!$AL$4:$AM$77,2,FALSE)),\"\",(VLOOKUP(G21,ххх!$AL$4:$AM$77,2,FALSE)))","v":"Деталь 11"},null,null,null,null,null,null,null,null,null,null,null,null,null,null,null,null,null,null,null,null,null,null,".",null,null,null,null,null,null,{"$f":"IF(AO21=1,AI19+SUM(AP19:AP21),0)","v":3.03},"Деталь 18",".",1,0.01]
[null,null,null,null,null,null,2.0699999999999998,{"$f":"IF(ISNA(VLOOKUP(G22,ххх!$AL$4:$AM$77,2,FALSE)),\"\",(VLOOKUP(G22,ххх!$AL$4:$AM$77,2,FALSE)))","v":"Деталь 12"},null,null,null,null,null,null,null,null,null,null,null,null,null,null,null,null,null,null,null,null,null,".",null,null,null,null,null,null,null,{"$f":"IF(AO22=1,AI19+SUM(AP19:AP22),0)","v":3.04},"Деталь 19",".",1,0.01]
[null,null,null,null,null,null,2.08,{"$f":"IF(ISNA(VLOOKUP(G23,ххх!$AL$4:$AM$77,2,FALSE)),\"\",(VLOOKUP(G23,ххх!$AL$4:$AM$77,2,FALSE)))","v":"Деталь 13"},null,null,null,null,null,null,null,null,null,null,null,null,null,null,null,null,null,null,null,null,null,null,".",null,null,null,null,null,null,{"$f":"IF(AO23=1,AI19+SUM(AP19:AP23),0)","v":3.05},"Деталь 20",".",1,0.01]
[null,null,null,null,null,null,2.09,{"$f":"IF(ISNA(VLOOKUP(G24,ххх!$AL$4:$AM$77,2,FALSE)),\"\",(VLOOKUP(G24,ххх!$AL$4:$AM$77,2,FALSE)))","v":"Деталь 14"},null,null,null,null,null,null,null,null,null,null,null,null,null,null,null,null,null,null,null,null,null,null,".",null,null,null,null,null,null,{"$f":"IF(AO24=1,AI19+SUM(AP19:AP24),0)","v":3.06},"Деталь 21",".",1,0.01]
[null,null,null,null,null,null,2.1,{"$f":"IF(ISNA(VLOOKUP(G25,ххх!$AL$4:$AM$77,2,FALSE)),\"\",(VLOOKUP(G25,ххх!$AL$4:$AM$77,2,FALSE)))","v":"Деталь 15"},null,null,null,null,null,null,null,null,null,null,null,null,null,null,null,null,null,null,null,null,null,null,null,".",null,null,null,null,null,{"$f":"IF(AO25=1,AI19+SUM(AP19:AP25),0)","v":3.07},"Деталь 22",".",1,0.01]
[40,3,{"$f":"IF(ISNA(VLOOKUP(B26,ххх!$AI$4:$AJ$77,2,FALSE)),\"\",(VLOOKUP(B26,ххх!$AI$4:$AJ$77,2,FALSE)))","v":103},{"$f":"IF(ISNA(VLOOKUP(B26,ххх!$AI$4:$AK$77,3,FALSE)),\"\",(VLOOKUP(B26,ххх!$AI$4:$AK$77,3,FALSE)))","v":"Изделие 3"},null,null,3.01,{"$f":"IF(ISNA(VLOOKUP(G26,ххх!$AL$4:$AM$77,2,FALSE)),\"\",(VLOOKUP(G26,ххх!$AL$4:$AM$77,2,FALSE)))","v":"Деталь 16"},null,null,null,null,null,null,null,null,null,null,null,null,null,null,null,null,null,null,null,null,".",null,null,null,null,null,null,null,null,{"$f":"IF(AO26=1,AI19+SUM(AP19:AP26),0)","v":3.08},"Деталь 23",".",1,0.01]
[null,null,null,null,null,null,3.02,{"$f":"IF(ISNA(VLOOKUP(G27,ххх!$AL$4:$AM$77,2,FALSE)),\"\",(VLOOKUP(G27,ххх!$AL$4:$AM$77,2,FALSE)))","v":"Деталь 17"},null,null,null,null,null,null,null,null,null,null,null,null,null,null,null,null,null,null,null,null,null,".",null,null,null,null,null,null,null,{"$f":"IF(AO27=1,AI19+SUM(AP19:AP27),0)","v":3.09},"Деталь 24",".",1,0.01]
[null,null,null,null,null,null,3.03,{"$f":"IF(ISNA(VLOOKUP(G28,ххх!$AL$4:$AM$77,2,FALSE)),\"\",(VLOOKUP(G28,ххх!$AL$4:$AM$77,2,FALSE)))","v":"Деталь 18"},null,null,null,null,null,null,null,null,null,null,null,null,null,null,null,null,null,null,null,null,null,".",null,null,null,null,{"$f":"IF(AQ28=0,\"Изделие не выбрано\",(SUM(AQ$4:AQ28)))","v":4},{"$f":"AJ19+1","v":104},"изделие 4",{"$f":"IF(AO28=1,AI28+AP28,0)","v":4.01},"Деталь 25",".",1,0.01,{"$f":"IF(SUM(AO28:AO35)>0,1,0)","v":1}]
[null,null,null,null,null,null,3.04,{"$f":"IF(ISNA(VLOOKUP(G29,ххх!$AL$4:$AM$77,2,FALSE)),\"\",(VLOOKUP(G29,ххх!$AL$4:$AM$77,2,FALSE)))","v":"Деталь 19"},null,null,null,null,null,null,null,null,null,null,null,null,null,null,null,null,null,null,null,null,null,null,".",null,null,null,null,null,null,{"$f":"IF(AO29=1,AI28+SUM(AP28:AP29),0)","v":4.0199999999999996},"Деталь 26",".",1,0.01]
[null,null,null,null,null,null,3.05,{"$f":"IF(ISNA(VLOOKUP(G30,ххх!$AL$4:$AM$77,2,FALSE)),\"\",(VLOOKUP(G30,ххх!$AL$4:$AM$77,2,FALSE)))","v":"Деталь 20"},null,null,null,null,null,null,null,null,null,null,null,null,null,null,null,null,null,null,null,null,null,null,".",null,null,null,null,null,null,{"$f":"IF(AO30=1,AI28+SUM(AP28:AP30),0)","v":4.03},"Деталь 27",".",1,0.01]
[null,null,null,null,null,null,3.06,{"$f":"IF(ISNA(VLOOKUP(G31,ххх!$AL$4:$AM$77,2,FALSE)),\"\",(VLOOKUP(G31,ххх!$AL$4:$AM$77,2,FALSE)))","v":"Деталь 21"},null,null,null,null,null,null,null,null,null,null,null,null,null,null,null,null,null,null,null,null,null,null,null,".",null,null,null,null,null,{"$f":"IF(AO31=1,AI28+SUM(AP28:AP31),0)","v":4.04},"Деталь 28",".",1,0.01]
[null,null,null,null,null,null,3.07,{"$f":"IF(ISNA(VLOOKUP(G32,ххх!$AL$4:$AM$77,2,FALSE)),\"\",(VLOOKUP(G32,ххх!$AL$4:$AM$77,2,FALSE)))","v":"Деталь 22"},null,null,null,null,null,null,null,null,null,null,null,null,null,null,null,null,null,null,null,null,null,null,".",null,null,null,null,null,null,{"$f":"IF(AO32=1,AI28+SUM(AP28:AP32),0)","v":4.05},"Деталь 29",".",1,0.01]
[null,null,null,null,null,null,3.08,{"$f":"IF(ISNA(VLOOKUP(G33,ххх!$AL$4:$AM$77,2,FALSE)),\"\",(VLOOKUP(G33,ххх!$AL$4:$AM$77,2,FALSE)))","v":"Деталь 23"},null,null,null,null,null,null,null,null,null,null,null,null,null,null,null,null,null,null,null,null,null,null,".",null,null,null,null,null,null,{"$f":"IF(AO33=1,AI28+SUM(AP28:AP33),0)","v":4.0599999999999996},"Деталь 30",".",1,0.01]
[null,null,null,null,null,null,3.09,{"$f":"IF(ISNA(VLOOKUP(G34,ххх!$AL$4:$AM$77,2,FALSE)),\"\",(VLOOKUP(G34,ххх!$AL$4:$AM$77,2,FALSE)))","v":"Деталь 24"},null,null,null,null,null,null,null,null,null,null,null,null,null,null,null,null,null,null,null,null,null,null,".",null,null,null,null,null,null,{"$f":"IF(AO34=1,AI28+SUM(AP28:AP34),0)","v":4.07},"Деталь 31",".",1,0.01]
[null,null,null,null,null,null,3.1,{"$f":"IF(ISNA(VLOOKUP(G35,ххх!$AL$4:$AM$77,2,FALSE)),\"\",(VLOOKUP(G35,ххх!$AL$4:$AM$77,2,FALSE)))","v":""},null,null,null,null,null,null,null,null,null,null,null,null,null,null,null,null,null,null,null,null,null,null,null,null,null,null,null,null,null,{"$f":"IF(AO35=1,AI28+SUM(AP28:AP35),0)","v":4.08},"Деталь 32",".",1,0.01]
[20,4,{"$f":"IF(ISNA(VLOOKUP(B36,ххх!$AI$4:$AJ$77,2,FALSE)),\"\",(VLOOKUP(B36,ххх!$AI$4:$AJ$77,2,FALSE)))","v":104},{"$f":"IF(ISNA(VLOOKUP(B36,ххх!$AI$4:$AK$77,3,FALSE)),\"\",(VLOOKUP(B36,ххх!$AI$4:$AK$77,3,FALSE)))","v":"изделие 4"},null,null,4.01,{"$f":"IF(ISNA(VLOOKUP(G36,ххх!$AL$4:$AM$77,2,FALSE)),\"\",(VLOOKUP(G36,ххх!$AL$4:$AM$77,2,FALSE)))","v":"Деталь 25"},null,null,null,null,null,null,null,null,null,null,null,null,null,null,null,null,null,null,null,null,null,null,".",null,null,null,{"$f":"IF(AQ36=0,\"Изделие не выбрано\",(SUM(AQ$4:AQ36)))","v":5},{"$f":"AJ28+1","v":105},"Изделие 5",{"$f":"IF(AO36=1,AI36+AP36,0)","v":5.01},"Деталь 33",".",{"$f":"IF(AN36=\".\",1,0)","v":1},{"$f":"IF(AO36=1,0.01,0)","v":0.01},{"$f":"IF(SUM(AO36:AO45)>0,1,0)","v":1}]
[null,null,null,null,null,null,4.0199999999999996,{"$f":"IF(ISNA(VLOOKUP(G37,ххх!$AL$4:$AM$77,2,FALSE)),\"\",(VLOOKUP(G37,ххх!$AL$4:$AM$77,2,FALSE)))","v":"Деталь 26"},null,null,null,null,null,null,null,null,null,null,null,null,null,null,null,null,null,null,null,null,null,null,null,".",null,null,null,null,null,{"$f":"IF(AO37=1,AI36+SUM(AP36:AP37),0)","v":5.0199999999999996},"Деталь 34",".",1,0.01]
[null,null,null,null,null,null,4.03,{"$f":"IF(ISNA(VLOOKUP(G38,ххх!$AL$4:$AM$77,2,FALSE)),\"\",(VLOOKUP(G38,ххх!$AL$4:$AM$77,2,FALSE)))","v":"Деталь 27"},null,null,null,null,null,null,null,null,null,null,null,null,null,null,null,null,null,null,null,null,null,".",null,null,null,null,null,null,null,{"$f":"IF(AO38=1,AI36+SUM(AP36:AP38),0)","v":5.03},"Деталь 35",".",1,0.01]
[null,null,null,null,null,null,4.04,{"$f":"IF(ISNA(VLOOKUP(G39,ххх!$AL$4:$AM$77,2,FALSE)),\"\",(VLOOKUP(G39,ххх!$AL$4:$AM$77,2,FALSE)))","v":"Деталь 28"},null,null,null,null,null,null,null,null,null,null,null,null,null,null,null,null,null,null,null,null,".",null,null,null,null,null,null,null,null,{"$f":"IF(AO39=1,AI36+SUM(AP36:AP39),0)","v":5.04},"Деталь 36",".",1,0.01]
[null,null,null,null,null,null,4.05,{"$f":"IF(ISNA(VLOOKUP(G40,ххх!$AL$4:$AM$77,2,FALSE)),\"\",(VLOOKUP(G40,ххх!$AL$4:$AM$77,2,FALSE)))","v":"Деталь 29"},null,null,null,null,null,null,null,null,null,null,null,null,null,null,null,null,null,null,null,null,".",null,null,null,null,null,null,null,null,{"$f":"IF(AO40=1,AI36+SUM(AP36:AP40),0)","v":5.05},"Деталь 37",".",1,0.01]
[null,null,null,null,null,null,4.0599999999999996,{"$f":"IF(ISNA(VLOOKUP(G41,ххх!$AL$4:$AM$77,2,FALSE)),\"\",(VLOOKUP(G41,ххх!$AL$4:$AM$77,2,FALSE)))","v":"Деталь 30"},null,null,null,null,null,null,null,null,null,null,null,null,null,null,null,null,null,null,null,null,null,".",null,null,null,null,null,null,null,{"$f":"IF(AO41=1,AI36+SUM(AP36:AP41),0)","v":5.0599999999999996},"Деталь 38",".",1,0.01]
[null,null,null,null,null,null,4.07,{"$f":"IF(ISNA(VLOOKUP(G42,ххх!$AL$4:$AM$77,2,FALSE)),\"\",(VLOOKUP(G42,ххх!$AL$4:$AM$77,2,FALSE)))","v":"Деталь 31"},null,null,null,null,null,null,null,null,null,null,null,null,null,null,null,null,null,null,null,null,null,null,".",null,null,null,null,null,null,{"$f":"IF(AO42=1,AI36+SUM(AP36:AP42),0)","v":5.07},"Деталь 39",".",1,0.01]
[null,null,null,null,null,null,4.08,{"$f":"IF(ISNA(VLOOKUP(G43,ххх!$AL$4:$AM$77,2,FALSE)),\"\",(VLOOKUP(G43,ххх!$AL$4:$AM$77,2,FALSE)))","v":"Деталь 32"},null,null,null,null,null,null,null,null,null,null,null,null,null,null,null,null,null,null,null,null,null,null,null,".",null,null,null,null,null,{"$f":"IF(AO43=1,AI36+SUM(AP36:AP43),0)","v":5.08},"Деталь 40",".",1,0.01]
[null,null,null,null,null,null,4.09,{"$f":"IF(ISNA(VLOOKUP(G44,ххх!$AL$4:$AM$77,2,FALSE)),\"\",(VLOOKUP(G44,ххх!$AL$4:$AM$77,2,FALSE)))","v":""},null,null,null,null,null,null,null,null,null,null,null,null,null,null,null,null,null,null,null,null,null,null,null,null,null,null,null,null,null,{"$f":"IF(AO44=1,AI36+SUM(AP36:AP44),0)","v":5.09},"Деталь 41",".",1,0.01]
[null,null,null,null,null,null,4.0999999999999996,{"$f":"IF(ISNA(VLOOKUP(G45,ххх!$AL$4:$AM$77,2,FALSE)),\"\",(VLOOKUP(G45,ххх!$AL$4:$AM$77,2,FALSE)))","v":""},null,null,null,null,null,null,null,null,null,null,null,null,null,null,null,null,null,null,null,null,null,null,null,null,null,null,null,null,null,{"$f":"IF(AO45=1,AI36+SUM(AP36:AP45),0)","v":5.0999999999999996},"Деталь 42",".",1,0.01]
[12,5,{"$f":"IF(ISNA(VLOOKUP(B46,ххх!$AI$4:$AJ$77,2,FALSE)),\"\",(VLOOKUP(B46,ххх!$AI$4:$AJ$77,2,FALSE)))","v":105},{"$f":"IF(ISNA(VLOOKUP(B46,ххх!$AI$4:$AK$77,3,FALSE)),\"\",(VLOOKUP(B46,ххх!$AI$4:$AK$77,3,FALSE)))","v":"Изделие 5"},null,null,5.01,{"$f":"IF(ISNA(VLOOKUP(G46,ххх!$AL$4:$AM$77,2,FALSE)),\"\",(VLOOKUP(G46,ххх!$AL$4:$AM$77,2,FALSE)))","v":"Деталь 33"},null,null,null,null,null,null,null,null,null,null,null,null,null,null,null,null,null,null,null,null,".",null,null,null,null,null,{"$f":"IF(AQ46=0,\"Изделие не выбрано\",(SUM(AQ$4:AQ46)))","v":6},{"$f":"AJ36+1","v":106},"Изделие 6",{"$f":"IF(AO46=1,AI46+AP46,0)","v":6.01},"Деталь 43",".",1,0.01,{"$f":"IF(SUM(AO46:AO53)>0,1,0)","v":1}]
[null,null,null,null,null,null,5.0199999999999996,{"$f":"IF(ISNA(VLOOKUP(G47,ххх!$AL$4:$AM$77,2,FALSE)),\"\",(VLOOKUP(G47,ххх!$AL$4:$AM$77,2,FALSE)))","v":"Деталь 34"},null,null,null,null,null,null,null,null,null,null,null,null,null,null,null,null,null,null,null,null,".",null,null,null,null,null,null,null,null,{"$f":"IF(AO47=1,AI46+SUM(AP46:AP47),0)","v":6.02},"Деталь 44",".",1,0.01]
[null,null,null,null,null,null,5.03,{"$f":"IF(ISNA(VLOOKUP(G48,ххх!$AL$4:$AM$77,2,FALSE)),\"\",(VLOOKUP(G48,ххх!$AL$4:$AM$77,2,FALSE)))","v":"Деталь 35"},null,null,null,null,null,null,null,null,null,null,null,null,null,null,null,null,null,null,null,null,".",null,null,null,null,null,null,null,null,{"$f":"IF(AO48=1,AI46+SUM(AP46:AP48),0)","v":6.03},"Деталь 45",".",1,0.01]
[null,null,null,null,null,null,5.04,{"$f":"IF(ISNA(VLOOKUP(G49,ххх!$AL$4:$AM$77,2,FALSE)),\"\",(VLOOKUP(G49,ххх!$AL$4:$AM$77,2,FALSE)))","v":"Деталь 36"},null,null,null,null,null,null,null,null,null,null,null,null,null,null,null,null,null,null,null,null,null,".",null,null,null,null,null,null,null,{"$f":"IF(AO49=1,AI46+SUM(AP46:AP49),0)","v":6.04},"Деталь 46",".",1,0.01]
[null,null,null,null,null,null,5.05,{"$f":"IF(ISNA(VLOOKUP(G50,ххх!$AL$4:$AM$77,2,FALSE)),\"\",(VLOOKUP(G50,ххх!$AL$4:$AM$77,2,FALSE)))","v":"Деталь 37"},null,null,null,null,null,null,null,null,null,null,null,null,null,null,null,null,null,null,null,null,null,".",null,null,null,null,null,null,null,{"$f":"IF(AO50=1,AI46+SUM(AP46:AP50),0)","v":6.05},"Деталь 47",".",1,0.01]
[null,null,null,null,null,null,5.0599999999999996,{"$f":"IF(ISNA(VLOOKUP(G51,ххх!$AL$4:$AM$77,2,FALSE)),\"\",(VLOOKUP(G51,ххх!$AL$4:$AM$77,2,FALSE)))","v":"Деталь 38"},null,null,null,null,null,null,null,null,null,null,null,null,null,null,null,null,null,null,null,null,null,null,".",null,null,null,null,null,null,{"$f":"IF(AO51=1,AI46+SUM(AP46:AP51),0)","v":6.06},"Деталь 48",".",1,0.01]
[null,null,null,null,null,null,5.07,{"$f":"IF(ISNA(VLOOKUP(G52,ххх!$AL$4:$AM$77,2,FALSE)),\"\",(VLOOKUP(G52,ххх!$AL$4:$AM$77,2,FALSE)))","v":"Деталь 39"},null,null,null,null,null,null,null,null,null,null,null,null,null,null,null,null,null,null,null,null,null,null,".",null,null,null,null,null,null,{"$f":"IF(AO52=1,AI46+SUM(AP46:AP52),0)","v":6.07},"Деталь 49",".",1,0.01]
[null,null,null,null,null,null,5.08,{"$f":"IF(ISNA(VLOOKUP(G53,ххх!$AL$4:$AM$77,2,FALSE)),\"\",(VLOOKUP(G53,ххх!$AL$4:$AM$77,2,FALSE)))","v":"Деталь 40"},null,null,null,null,null,null,null,null,null,null,null,null,null,null,null,null,null,null,null,null,null,null,".",null,null,null,null,null,null,{"$f":"IF(AO53=1,AI46+SUM(AP46:AP53),0)","v":6.08},"Деталь 50",".",1,0.01]
[null,null,null,null,null,null,5.09,{"$f":"IF(ISNA(VLOOKUP(G54,ххх!$AL$4:$AM$77,2,FALSE)),\"\",(VLOOKUP(G54,ххх!$AL$4:$AM$77,2,FALSE)))","v":"Деталь 41"},null,null,null,null,null,null,null,null,null,null,null,null,null,null,null,null,null,null,null,null,null,null,".",null,null,null,{"$f":"IF(AQ54=0,\"Изделие не выбрано\",(SUM(AQ$4:AQ54)))","v":"Изделие не выбрано"},{"$f":"AJ46+1","v":107},"Изделие 7",{"$f":"IF(AO54=1,AI54+AP54,0)","v":0},"Деталь 51",null,0,0,{"$f":"IF(SUM(AO54:AO60)>0,1,0)","v":0}]
[null,null,null,null,null,null,5.0999999999999996,{"$f":"IF(ISNA(VLOOKUP(G55,ххх!$AL$4:$AM$77,2,FALSE)),\"\",(VLOOKUP(G55,ххх!$AL$4:$AM$77,2,FALSE)))","v":"Деталь 42"},null,null,null,null,null,null,null,null,null,null,null,null,null,null,null,null,null,null,null,null,null,null,null,null,null,null,null,null,null,{"$f":"IF(AO55=1,AI54+SUM(AP54:AP55),0)","v":0},"Деталь 52",null,0,0]
[15,6,{"$f":"IF(ISNA(VLOOKUP(B56,ххх!$AI$4:$AJ$77,2,FALSE)),\"\",(VLOOKUP(B56,ххх!$AI$4:$AJ$77,2,FALSE)))","v":106},{"$f":"IF(ISNA(VLOOKUP(B56,ххх!$AI$4:$AK$77,3,FALSE)),\"\",(VLOOKUP(B56,ххх!$AI$4:$AK$77,3,FALSE)))","v":"Изделие 6"},null,null,6.01,{"$f":"IF(ISNA(VLOOKUP(G56,ххх!$AL$4:$AM$77,2,FALSE)),\"\",(VLOOKUP(G56,ххх!$AL$4:$AM$77,2,FALSE)))","v":"Деталь 43"},null,null,null,null,null,null,null,null,null,null,null,null,null,null,null,null,null,null,null,null,null,null,".",null,null,null,null,null,null,{"$f":"IF(AO56=1,AI54+SUM(AP54:AP56),0)","v":0},"Деталь 53",null,0,0]
[null,null,null,null,null,null,6.02,{"$f":"IF(ISNA(VLOOKUP(G57,ххх!$AL$4:$AM$77,2,FALSE)),\"\",(VLOOKUP(G57,ххх!$AL$4:$AM$77,2,FALSE)))","v":"Деталь 44"},null,null,null,null,null,null,null,null,null,null,null,null,null,null,null,null,null,null,null,null,null,".",null,null,null,null,null,null,null,{"$f":"IF(AO57=1,AI54+SUM(AP54:AP57),0)","v":0},"Деталь 54",null,0,0]
[null,null,null,null,null,null,6.03,{"$f":"IF(ISNA(VLOOKUP(G58,ххх!$AL$4:$AM$77,2,FALSE)),\"\",(VLOOKUP(G58,ххх!$AL$4:$AM$77,2,FALSE)))","v":"Деталь 45"},null,null,null,null,null,null,null,null,null,null,null,null,null,null,null,null,null,null,null,null,".",null,null,null,null,null,null,null,null,{"$f":"IF(AO58=1,AI54+SUM(AP54:AP58),0)","v":0},"Деталь 55",null,0,0]
[null,null,null,null,null,null,6.04,{"$f":"IF(ISNA(VLOOKUP(G59,ххх!$AL$4:$AM$77,2,FALSE)),\"\",(VLOOKUP(G59,ххх!$AL$4:$AM$77,2,FALSE)))","v":"Деталь 46"},null,null,null,null,null,null,null,null,null,null,null,null,null,null,null,null,null,null,null,null,null,".",null,null,null,null,null,null,null,{"$f":"IF(AO59=1,AI54+SUM(AP54:AP59),0)","v":0},"Деталь 56",null,0,0]
[null,null,null,null,null,null,6.05,{"$f":"IF(ISNA(VLOOKUP(G60,ххх!$AL$4:$AM$77,2,FALSE)),\"\",(VLOOKUP(G60,ххх!$AL$4:$AM$77,2,FALSE)))","v":"Деталь 47"},null,null,null,null,null,null,null,null,null,null,null,null,null,null,null,null,null,null,null,null,null,".",null,null,null,null,null,null,null,{"$f":"IF(AO60=1,AI54+SUM(AP54:AP60),0)","v":0},"Деталь 57",null,0,0]
[null,null,null,null,null,null,6.06,{"$f":"IF(ISNA(VLOOKUP(G61,ххх!$AL$4:$AM$77,2,FALSE)),\"\",(VLOOKUP(G61,ххх!$AL$4:$AM$77,2,FALSE)))","v":"Деталь 48"},null,null,null,null,null,null,null,null,null,null,null,null,null,null,null,null,null,null,null,null,null,null,".",null,null,null,{"$f":"IF(AQ61=0,\"Изделие не выбрано\",(SUM(AQ$4:AQ61)))","v":7},{"$f":"AJ54+1","v":108},"Изделие 8",{"$f":"IF(AO61=1,AI61+AP61,0)","v":7.01},"Деталь 58",".",1,0.01,{"$f":"IF(SUM(AO61:AO66)>0,1,0)","v":1}]
[null,null,null,null,null,null,6.07,{"$f":"IF(ISNA(VLOOKUP(G62,ххх!$AL$4:$AM$77,2,FALSE)),\"\",(VLOOKUP(G62,ххх!$AL$4:$AM$77,2,FALSE)))","v":"Деталь 49"},null,null,null,null,null,null,null,null,null,null,null,null,null,null,null,null,null,null,null,null,null,null,".",null,null,null,null,null,null,{"$f":"IF(AO62=1,AI61+SUM(AP61:AP62),0)","v":7.02},"Деталь 59",".",1,0.01]
[null,null,null,null,null,null,6.08,{"$f":"IF(ISNA(VLOOKUP(G63,ххх!$AL$4:$AM$77,2,FALSE)),\"\",(VLOOKUP(G63,ххх!$AL$4:$AM$77,2,FALSE)))","v":"Деталь 50"},null,null,null,null,null,null,null,null,null,null,null,null,null,null,null,null,null,null,null,null,null,null,".",null,null,null,null,null,null,{"$f":"IF(AO63=1,AI61+SUM(AP61:AP63),0)","v":7.03},"Деталь 60",".",1,0.01]
[null,null,null,null,null,null,6.09,{"$f":"IF(ISNA(VLOOKUP(G64,ххх!$AL$4:$AM$77,2,FALSE)),\"\",(VLOOKUP(G64,ххх!$AL$4:$AM$77,2,FALSE)))","v":""},null,null,null,null,null,null,null,null,null,null,null,null,null,null,null,null,null,null,null,null,null,null,null,null,null,null,null,null,null,{"$f":"IF(AO64=1,AI61+SUM(AP61:AP64),0)","v":7.04},"Деталь 61",".",1,0.01]
[null,null,null,null,null,null,6.1,{"$f":"IF(ISNA(VLOOKUP(G65,ххх!$AL$4:$AM$77,2,FALSE)),\"\",(VLOOKUP(G65,ххх!$AL$4:$AM$77,2,FALSE)))","v":""},null,null,null,null,null,null,null,null,null,null,null,null,null,null,null,null,null,null,null,null,null,null,null,null,null,null,null,null,null,{"$f":"IF(AO65=1,AI61+SUM(AP61:AP65),0)","v":7.05},"Деталь 62",".",1,0.01]
[16,7,{"$f":"IF(ISNA(VLOOKUP(B66,ххх!$AI$4:$AJ$77,2,FALSE)),\"\",(VLOOKUP(B66,ххх!$AI$4:$AJ$77,2,FALSE)))","v":108},{"$f":"IF(ISNA(VLOOKUP(B66,ххх!$AI$4:$AK$77,3,FALSE)),\"\",(VLOOKUP(B66,ххх!$AI$4:$AK$77,3,FALSE)))","v":"Изделие 8"},null,null,7.01,{"$f":"IF(ISNA(VLOOKUP(G66,ххх!$AL$4:$AM$77,2,FALSE)),\"\",(VLOOKUP(G66,ххх!$AL$4:$AM$77,2,FALSE)))","v":"Деталь 58"},null,null,null,null,null,null,null,null,null,null,null,null,null,null,null,null,null,null,null,null,null,null,null,".",null,null,null,null,null,{"$f":"IF(AO66=1,AI61+SUM(AP61:AP66),0)","v":7.06},"Деталь 63",".",1,0.01]
[null,null,null,null,null,null,7.02,{"$f":"IF(ISNA(VLOOKUP(G67,ххх!$AL$4:$AM$77,2,FALSE)),\"\",(VLOOKUP(G67,ххх!$AL$4:$AM$77,2,FALSE)))","v":"Деталь 59"},null,null,null,null,null,null,null,null,null,null,null,null,null,null,null,null,null,null,null,null,null,null,".",null,null,null,{"$f":"IF(AQ67=0,\"Изделие не выбрано\",(SUM(AQ$4:AQ67)))","v":8},{"$f":"AJ61+1","v":109},"Изделие 9",{"$f":"IF(AO67=1,AI67+AP67,0)","v":8.01},"Деталь 64",".",1,0.01,{"$f":"IF(SUM(AO67:AO72)>0,1,0)","v":1}]
[null,null,null,null,null,null,7.03,{"$f":"IF(ISNA(VLOOKUP(G68,ххх!$AL$4:$AM$77,2,FALSE)),\"\",(VLOOKUP(G68,ххх!$AL$4:$AM$77,2,FALSE)))","v":"Деталь 60"},null,null,null,null,null,null,null,null,null,null,null,null,null,null,null,null,null,null,null,null,null,null,null,".",null,null,null,null,null,{"$f":"IF(AO68=1,AI67+SUM(AP67:AP68),0)","v":8.02},"Деталь 65",".",{"$f":"IF(AN68=\".\",1,0)","v":1},{"$f":"IF(AO68=1,0.01,0)","v":0.01}]
[null,null,null,null,null,null,7.04,{"$f":"IF(ISNA(VLOOKUP(G69,ххх!$AL$4:$AM$77,2,FALSE)),\"\",(VLOOKUP(G69,ххх!$AL$4:$AM$77,2,FALSE)))","v":"Деталь 61"},null,null,null,null,null,null,null,null,null,null,null,null,null,null,null,null,null,null,null,null,null,null,".",null,null,null,null,null,null,{"$f":"IF(AO69=1,AI67+SUM(AP67:AP69),0)","v":8.0299999999999994},"Деталь 66",".",1,0.01]
[null,null,null,null,null,null,7.05,{"$f":"IF(ISNA(VLOOKUP(G70,ххх!$AL$4:$AM$77,2,FALSE)),\"\",(VLOOKUP(G70,ххх!$AL$4:$AM$77,2,FALSE)))","v":"Деталь 62"},null,null,null,null,null,null,null,null,null,null,null,null,null,null,null,null,null,null,null,null,null,".",null,null,null,null,null,null,null,{"$f":"IF(AO70=1,AI67+SUM(AP67:AP70),0)","v":8.0399999999999991},"Деталь 67",".",1,0.01]
[null,null,null,null,null,null,7.06,{"$f":"IF(ISNA(VLOOKUP(G71,ххх!$AL$4:$AM$77,2,FALSE)),\"\",(VLOOKUP(G71,ххх!$AL$4:$AM$77,2,FALSE)))","v":"Деталь 63"},null,null,null,null,null,null,null,null,null,null,null,null,null,null,null,null,null,null,null,null,".",null,null,null,null,null,null,null,null,{"$f":"IF(AO71=1,AI67+SUM(AP67:AP71),0)","v":8.0500000000000007},"Деталь 68",".",1,0.01]
[null,null,null,null,null,null,7.07,{"$f":"IF(ISNA(VLOOKUP(G72,ххх!$AL$4:$AM$77,2,FALSE)),\"\",(VLOOKUP(G72,ххх!$AL$4:$AM$77,2,FALSE)))","v":""},null,null,null,null,null,null,null,null,null,null,null,null,null,null,null,null,null,null,null,null,null,null,null,null,null,null,null,null,null,{"$f":"IF(AO72=1,AI67+SUM(AP67:AP72),0)","v":8.06},"Деталь 69",".",1,0.01]
[null,null,null,null,null,null,7.08,{"$f":"IF(ISNA(VLOOKUP(G73,ххх!$AL$4:$AM$77,2,FALSE)),\"\",(VLOOKUP(G73,ххх!$AL$4:$AM$77,2,FALSE)))","v":""},null,null,null,null,null,null,null,null,null,null,null,null,null,null,null,null,null,null,null,null,null,null,null,null,null,null,{"$f":"IF(AQ73=0,\"Изделие не выбрано\",(SUM(AQ$4:AQ73)))","v":9},{"$f":"AJ67+1","v":110},"Изделие 10",{"$f":"IF(AO73=1,AI73+AP73,0)","v":9.01},"Деталь 70",".",1,0.01,{"$f":"IF(SUM(AO73:AO77)>0,1,0)","v":1}]
[null,null,null,null,null,null,7.09,{"$f":"IF(ISNA(VLOOKUP(G74,ххх!$AL$4:$AM$77,2,FALSE)),\"\",(VLOOKUP(G74,ххх!$AL$4:$AM$77,2,FALSE)))","v":""},null,null,null,null,null,null,null,null,null,null,null,null,null,null,null,null,null,null,null,null,null,null,null,null,null,null,null,null,null,{"$f":"IF(AO74=1,AI73+SUM(AP73:AP74),0)","v":9.02},"Деталь 71",".",1,0.01]
[null,null,null,null,null,null,7.1,{"$f":"IF(ISNA(VLOOKUP(G75,ххх!$AL$4:$AM$77,2,FALSE)),\"\",(VLOOKUP(G75,ххх!$AL$4:$AM$77,2,FALSE)))","v":""},null,null,null,null,null,null,null,null,null,null,null,null,null,null,null,null,null,null,null,null,null,null,null,null,null,null,null,null,null,{"$f":"IF(AO75=1,AI73+SUM(AP73:AP75),0)","v":9.0299999999999994},"Деталь 72",".",1,0.01]
[7,8,{"$f":"IF(ISNA(VLOOKUP(B76,ххх!$AI$4:$AJ$77,2,FALSE)),\"\",(VLOOKUP(B76,ххх!$AI$4:$AJ$77,2,FALSE)))","v":109},{"$f":"IF(ISNA(VLOOKUP(B76,ххх!$AI$4:$AK$77,3,FALSE)),\"\",(VLOOKUP(B76,ххх!$AI$4:$AK$77,3,FALSE)))","v":"Изделие 9"},null,null,8.01,{"$f":"IF(ISNA(VLOOKUP(G76,ххх!$AL$4:$AM$77,2,FALSE)),\"\",(VLOOKUP(G76,ххх!$AL$4:$AM$77,2,FALSE)))","v":"Деталь 64"},null,null,null,null,null,null,null,null,null,null,null,null,null,null,null,null,null,null,null,null,null,null,null,".",null,null,null,null,null,{"$f":"IF(AO76=1,AI73+SUM(AP73:AP76),0)","v":9.0399999999999991},"Деталь 73",".",1,0.01]
[null,null,null,null,null,null,8.02,{"$f":"IF(ISNA(VLOOKUP(G77,ххх!$AL$4:$AM$77,2,FALSE)),\"\",(VLOOKUP(G77,ххх!$AL$4:$AM$77,2,FALSE)))","v":"Деталь 65"},null,null,null,null,null,null,null,null,null,null,null,null,null,null,null,null,null,null,null,null,null,null,".",null,null,null,null,null,null,{"$f":"IF(AO77=1,AI73+SUM(AP73:AP77),0)","v":9.0500000000000007},"Деталь 74",".",1,0.01]
[null,null,null,null,null,null,8.0299999999999994,{"$f":"IF(ISNA(VLOOKUP(G78,ххх!$AL$4:$AM$77,2,FALSE)),\"\",(VLOOKUP(G78,ххх!$AL$4:$AM$77,2,FALSE)))","v":"Деталь 66"},null,null,null,null,null,null,null,null,null,null,null,null,null,null,null,null,null,null,null,null,null,"."]
[null,null,null,null,null,null,8.0399999999999991,{"$f":"IF(ISNA(VLOOKUP(G79,ххх!$AL$4:$AM$77,2,FALSE)),\"\",(VLOOKUP(G79,ххх!$AL$4:$AM$77,2,FALSE)))","v":"Деталь 67"},null,null,null,null,null,null,null,null,null,null,null,null,null,null,null,null,null,null,null,null,null,null,"."]
[null,null,null,null,null,null,8.0500000000000007,{"$f":"IF(ISNA(VLOOKUP(G80,ххх!$AL$4:$AM$77,2,FALSE)),\"\",(VLOOKUP(G80,ххх!$AL$4:$AM$77,2,FALSE)))","v":"Деталь 68"},null,null,null,null,null,null,null,null,null,null,null,null,null,null,null,null,null,null,null,null,null,"."]
[null,null,null,null,null,null,8.06,{"$f":"IF(ISNA(VLOOKUP(G81,ххх!$AL$4:$AM$77,2,FALSE)),\"\",(VLOOKUP(G81,ххх!$AL$4:$AM$77,2,FALSE)))","v":"Деталь 69"},null,null,null,null,null,null,null,null,null,null,null,null,null,null,null,null,null,null,null,null,null,null,"."]
[null,null,null,null,null,null,8.07,{"$f":"IF(ISNA(VLOOKUP(G82,ххх!$AL$4:$AM$77,2,FALSE)),\"\",(VLOOKUP(G82,ххх!$AL$4:$AM$77,2,FALSE)))","v":""}]
[null,null,null,null,null,null,8.08,{"$f":"IF(ISNA(VLOOKUP(G83,ххх!$AL$4:$AM$77,2,FALSE)),\"\",(VLOOKUP(G83,ххх!$AL$4:$AM$77,2,FALSE)))","v":""}]
[null,null,null,null,null,null,8.09,{"$f":"IF(ISNA(VLOOKUP(G84,ххх!$AL$4:$AM$77,2,FALSE)),\"\",(VLOOKUP(G84,ххх!$AL$4:$AM$77,2,FALSE)))","v":""}]
[null,null,null,null,null,null,8.1,{"$f":"IF(ISNA(VLOOKUP(G85,ххх!$AL$4:$AM$77,2,FALSE)),\"\",(VLOOKUP(G85,ххх!$AL$4:$AM$77,2,FALSE)))","v":""}]
[30,9,{"$f":"IF(ISNA(VLOOKUP(B86,ххх!$AI$4:$AJ$77,2,FALSE)),\"\",(VLOOKUP(B86,ххх!$AI$4:$AJ$77,2,FALSE)))","v":110},{"$f":"IF(ISNA(VLOOKUP(B86,ххх!$AI$4:$AK$77,3,FALSE)),\"\",(VLOOKUP(B86,ххх!$AI$4:$AK$77,3,FALSE)))","v":"Изделие 10"},null,null,9.01,{"$f":"IF(ISNA(VLOOKUP(G86,ххх!$AL$4:$AM$77,2,FALSE)),\"\",(VLOOKUP(G86,ххх!$AL$4:$AM$77,2,FALSE)))","v":"Деталь 70"},null,null,null,null,null,null,null,null,null,null,null,null,null,null,null,null,null,null,null,null,null,null,null,"."]
[null,null,null,null,null,null,9.02,{"$f":"IF(ISNA(VLOOKUP(G87,ххх!$AL$4:$AM$77,2,FALSE)),\"\",(VLOOKUP(G87,ххх!$AL$4:$AM$77,2,FALSE)))","v":"Деталь 71"},null,null,null,null,null,null,null,null,null,null,null,null,null,null,null,null,null,null,null,null,null,null,"."]
[null,null,null,null,null,null,9.0299999999999994,{"$f":"IF(ISNA(VLOOKUP(G88,ххх!$AL$4:$AM$77,2,FALSE)),\"\",(VLOOKUP(G88,ххх!$AL$4:$AM$77,2,FALSE)))","v":"Деталь 72"},null,null,null,null,null,null,null,null,null,null,null,null,null,null,null,null,null,null,null,null,"."]
[null,null,null,null,null,null,9.0399999999999991,{"$f":"IF(ISNA(VLOOKUP(G89,ххх!$AL$4:$AM$77,2,FALSE)),\"\",(VLOOKUP(G89,ххх!$AL$4:$AM$77,2,FALSE)))","v":"Деталь 73"},null,null,null,null,null,null,null,null,null,null,null,null,null,null,null,null,null,null,null,null,null,"."]
[null,null,null,null,null,null,9.0500000000000007,{"$f":"IF(ISNA(VLOOKUP(G90,ххх!$AL$4:$AM$77,2,FALSE)),\"\",(VLOOKUP(G90,ххх!$AL$4:$AM$77,2,FALSE)))","v":"Деталь 74"},null,null,null,null,null,null,null,null,null,null,null,null,null,null,null,null,null,null,null,null,null,"."]
[null,null,null,null,null,null,9.06,{"$f":"IF(ISNA(VLOOKUP(G91,ххх!$AL$4:$AM$77,2,FALSE)),\"\",(VLOOKUP(G91,ххх!$AL$4:$AM$77,2,FALSE)))","v":""}]
[null,null,null,null,null,null,9.07,{"$f":"IF(ISNA(VLOOKUP(G92,ххх!$AL$4:$AM$77,2,FALSE)),\"\",(VLOOKUP(G92,ххх!$AL$4:$AM$77,2,FALSE)))","v":""}]
[null,null,null,null,null,null,9.08,{"$f":"IF(ISNA(VLOOKUP(G93,ххх!$AL$4:$AM$77,2,FALSE)),\"\",(VLOOKUP(G93,ххх!$AL$4:$AM$77,2,FALSE)))","v":""}]
[null,null,null,null,null,null,9.09,{"$f":"IF(ISNA(VLOOKUP(G94,ххх!$AL$4:$AM$77,2,FALSE)),\"\",(VLOOKUP(G94,ххх!$AL$4:$AM$77,2,FALSE)))","v":""}]
[null,null,null,null,null,null,9.1,{"$f":"IF(ISNA(VLOOKUP(G95,ххх!$AL$4:$AM$77,2,FALSE)),\"\",(VLOOKUP(G95,ххх!$AL$4:$AM$77,2,FALSE)))","v":""}]
[null,10,{"$f":"IF(ISNA(VLOOKUP(B96,ххх!$AI$4:$AJ$77,2,FALSE)),\"\",(VLOOKUP(B96,ххх!$AI$4:$AJ$77,2,FALSE)))","v":""},{"$f":"IF(ISNA(VLOOKUP(B96,ххх!$AI$4:$AK$77,3,FALSE)),\"\",(VLOOKUP(B96,ххх!$AI$4:$AK$77,3,FALSE)))","v":""},null,null,10.01,{"$f":"IF(ISNA(VLOOKUP(G96,ххх!$AL$4:$AM$77,2,FALSE)),\"\",(VLOOKUP(G96,ххх!$AL$4:$AM$77,2,FALSE)))","v":""}]
[null,null,null,null,null,null,10.02,{"$f":"IF(ISNA(VLOOKUP(G97,ххх!$AL$4:$AM$77,2,FALSE)),\"\",(VLOOKUP(G97,ххх!$AL$4:$AM$77,2,FALSE)))","v":""}]
[null,null,null,null,null,null,10.029999999999999,{"$f":"IF(ISNA(VLOOKUP(G98,ххх!$AL$4:$AM$77,2,FALSE)),\"\",(VLOOKUP(G98,ххх!$AL$4:$AM$77,2,FALSE)))","v":""}]
[null,null,null,null,null,null,10.039999999999999,{"$f":"IF(ISNA(VLOOKUP(G99,ххх!$AL$4:$AM$77,2,FALSE)),\"\",(VLOOKUP(G99,ххх!$AL$4:$AM$77,2,FALSE)))","v":""}]
[null,null,null,null,null,null,10.050000000000001,{"$f":"IF(ISNA(VLOOKUP(G100,ххх!$AL$4:$AM$77,2,FALSE)),\"\",(VLOOKUP(G100,ххх!$AL$4:$AM$77,2,FALSE)))","v":""}]
[null,null,null,null,null,null,10.06,{"$f":"IF(ISNA(VLOOKUP(G101,ххх!$AL$4:$AM$77,2,FALSE)),\"\",(VLOOKUP(G101,ххх!$AL$4:$AM$77,2,FALSE)))","v":""}]
[null,null,null,null,null,null,10.07,{"$f":"IF(ISNA(VLOOKUP(G102,ххх!$AL$4:$AM$77,2,FALSE)),\"\",(VLOOKUP(G102,ххх!$AL$4:$AM$77,2,FALSE)))","v":""}]
[null,null,null,null,null,null,10.08,{"$f":"IF(ISNA(VLOOKUP(G103,ххх!$AL$4:$AM$77,2,FALSE)),\"\",(VLOOKUP(G103,ххх!$AL$4:$AM$77,2,FALSE)))","v":""}]
[null,null,null,null,null,null,10.09,{"$f":"IF(ISNA(VLOOKUP(G104,ххх!$AL$4:$AM$77,2,FALSE)),\"\",(VLOOKUP(G104,ххх!$AL$4:$AM$77,2,FALSE)))","v":""}]
[null,null,null,null,null,null,10.1,{"$f":"IF(ISNA(VLOOKUP(G105,ххх!$AL$4:$AM$77,2,FALSE)),\"\",(VLOOKUP(G105,ххх!$AL$4:$AM$77,2,FALSE)))","v":""}]